fUSD/lending_fUSD_20240429
["ID","MTS","AMOUNT","RATE_DAILY","PERIOD"]
[324826826,1714354243597,-536.62,0.00012889,2]
[324826828,1714354243607,-2697.45,0.00012889,2]
[324826829,1714354243616,-500.0,0.00012889,2]
[324826831,1714354243625,-500.0,0.00012889,2]
[324826833,1714354243634,-500.0,0.00012889,2]
[324826834,1714354243643,-500.0,0.00012889,2]
[324826836,1714354243651,-169.7130042,0.00012889,2]
[324826838,1714354243661,-384.13343323,0.00012889,2]
[324826839,1714354243669,-500.0,0.00012889,2]
[324826840,1714354243678,-500.0,0.00012889,2]
[324826841,1714354243687,-500.0,0.00012889,2]
[324826842,1714354243696,-500.0,0.00012889,2]
[324826843,1714354243705,-2657.31,0.00012889,2]
[324826844,1714354243714,-500.0,0.00012889,2]
[324826845,1714354243723,-500.0,0.00012889,2]
[324826847,1714354243732,-500.0,0.00012889,2]
[324826849,1714354243743,-500.0,0.00012889,2]
[324826851,1714354243752,-500.0,0.00012889,2]
[324826853,1714354243761,-500.0,0.00012889,2]
[324826855,1714354243770,-500.0,0.00012889,2]
[324826857,1714354243780,-500.0,0.00012889,2]
[324826859,1714354243788,-500.0,0.00012889,2]
[324826861,1714354243798,-500.0,0.00012889,2]
[324826863,1714354243810,-500.0,0.00012889,2]
[324826865,1714354243819,-500.0,0.00012889,2]
[324826867,1714354243829,-500.0,0.00012889,2]
[324826869,1714354243839,-500.0,0.00012889,2]
[324826871,1714354243849,-518.99098347,0.00012889,2]
[324826873,1714354243859,-500.0,0.00012889,2]
[324826875,1714354243868,-519.77988119,0.00012889,2]
[324826877,1714354243877,-555.4458614,0.00012889,2]
[324826879,1714354243888,-512.95860389,0.00012889,2]
[324826881,1714354243896,-580.64208602,0.00012889,2]
[324826883,1714354243905,-500.0,0.00012889,2]
[324826885,1714354243915,-512.77275307,0.00012889,2]
[324826887,1714354243924,-518.26941275,0.00012889,2]
[324826889,1714354243933,-500.0,0.00012889,2]
[324826890,1714354243942,-526.49851605,0.00012889,2]
[324826891,1714354243951,-151.4391529,0.0001289,2]
[324826892,1714354243960,-186.67421877,0.0001289,2]
[324826893,1714354243970,-500.0,0.0001289,2]
[324826894,1714354243979,-696.08,0.0001289,2]
[324826895,1714354243989,-500.0,0.0001289,2]
[324826896,1714354243998,-500.0,0.0001289,2]
[324826897,1714354244007,-500.0,0.0001289,2]
[324826898,1714354244016,-500.0,0.0001289,2]
[324826899,1714354244025,-500.0,0.0001289,2]
[324826900,1714354244034,-500.0,0.0001289,2]
[324826901,1714354244043,-945.09,0.0001289,2]
[324826903,1714354244053,-8603.81,0.0001289,2]
[324826904,1714354244062,-500.0,0.0001289,2]
[324826905,1714354244071,-500.0,0.0001289,2]
[324826906,1714354244080,-1718.96,0.0001289,2]
[324826907,1714354244089,-500.0,0.0001289,2]
[324826908,1714354244098,-500.0,0.0001289,2]
[324826909,1714354244107,-500.0,0.0001289,2]
[324826910,1714354244116,-500.0,0.0001289,2]
[324826911,1714354244126,-14858.38918869,0.0001289,2]
[324826912,1714354244135,-14414.2793421,0.00012891,2]
[324826913,1714354244144,-14414.27934205,0.00012892,2]
[324826914,1714354244153,-14414.27934205,0.00012893,2]
[324826915,1714354244162,-14414.27934205,0.00012893,2]
[324826916,1714354244171,-5471.16073376,0.00012894,2]
[324826917,1714354244181,-14414.27934205,0.00012894,2]
[324826918,1714354244190,-499.99,0.00012894,2]
[324826919,1714354244199,-213.77731064,0.00012895,2]
[324826920,1714354244208,-14858.38918867,0.00012895,2]
[324826921,1714354244217,-14414.27934205,0.00012895,2]
[324826922,1714354244227,-14414.27934205,0.00012896,2]
[324826923,1714354244235,-1000.0,0.00012896,2]
[324826924,1714354244246,-500.0,0.00012896,2]
[324826925,1714354244256,-500.0,0.00012896,2]
[324826926,1714354244265,-500.0,0.00012896,2]
[324826927,1714354244274,-221.09855849,0.00012896,2]
[324826928,1714354244283,-500.0,0.00012896,2]
[324826929,1714354244292,-439.71,0.00012896,2]
[324826930,1714354244302,-343.69706603,0.00012896,2]
[324826931,1714354244311,-500.0,0.00012896,2]
[324826932,1714354244320,-293.9450316,0.00012896,2]
[324826933,1714354244330,-500.0,0.00012896,2]
[324826934,1714354244339,-500.0,0.00012896,2]
[324826935,1714354244348,-398.8267597,0.00012896,2]
[324826936,1714354244357,-500.0,0.00012896,2]
[324826937,1714354244367,-500.0,0.00012896,2]
[324826938,1714354244376,-500.0,0.00012896,2]
[324826939,1714354244386,-500.0,0.00012896,2]
[324826940,1714354244396,-500.0,0.00012896,2]
[324826941,1714354244405,-500.0,0.00012896,2]
[324826942,1714354244414,-500.0,0.00012896,2]
[324826943,1714354244423,-500.0,0.00012896,2]
[324826944,1714354244432,-500.0,0.00012896,2]
[324826945,1714354244442,-500.0,0.00012896,2]
[324826946,1714354244451,-500.0,0.00012896,2]
[324826947,1714354244460,-500.0,0.00012896,2]
[324826948,1714354244469,-500.0,0.00012896,2]
[324826949,1714354244479,-500.0,0.00012896,2]
[324826950,1714354244490,-500.0,0.00012896,2]
[324826951,1714354244499,-500.0,0.00012896,2]
[324826952,1714354244508,-500.0,0.00012896,2]
[324826953,1714354244518,-500.0,0.00012896,2]
[324826954,1714354244527,-500.0,0.00012896,2]
[324826955,1714354244537,-500.0,0.00012896,2]
[324826956,1714354244546,-500.0,0.00012896,2]
[324826957,1714354244556,-500.0,0.00012896,2]
[324826958,1714354244565,-500.0,0.00012896,2]
[324826959,1714354244574,-500.0,0.00012896,2]
[324826960,1714354244583,-500.0,0.00012896,2]
[324826961,1714354244593,-608.56324732,0.00012896,2]
[324826962,1714354244642,-500.0,0.00012896,2]
[324826963,1714354244652,-500.0,0.00012896,2]
[324826964,1714354244662,-500.0,0.00012896,2]
[324826965,1714354244672,-500.0,0.00012896,2]
[324826966,1714354244681,-500.0,0.00012896,2]
[324826967,1714354244691,-500.0,0.00012896,2]
[324826968,1714354244700,-500.0,0.00012896,2]
[324826969,1714354244710,-551.67,0.00012896,2]
[324826970,1714354244719,-290.5,0.00012896,2]
[324826971,1714354244729,-500.0,0.00012896,2]
[324826972,1714354244739,-500.0,0.00012896,2]
[324826973,1714354244748,-500.0,0.00012896,2]
[324826974,1714354244757,-500.0,0.00012896,2]
[324826975,1714354244766,-500.0,0.00012896,2]
[324826976,1714354244776,-500.0,0.00012896,2]
[324826977,1714354244785,-317.47,0.00012896,2]
[324826978,1714354244795,-500.0,0.00012896,2]
[324826979,1714354244805,-500.0,0.00012896,2]
[324826980,1714354244820,-500.0,0.00012896,2]
[324826981,1714354244829,-500.0,0.00012896,2]
[324826982,1714354244838,-153.74,0.00012896,2]
[324826983,1714354244847,-500.0,0.00012896,2]
[324826984,1714354244857,-500.0,0.00012896,2]
[324826985,1714354244866,-500.0,0.00012896,2]
[324826986,1714354244875,-250.21919436,0.00012896,2]
[324826987,1714354244884,-636.39073612,0.00012896,2]
[324826988,1714354244894,-500.0,0.00012896,2]
[324826989,1714354244904,-500.0,0.00012896,2]
[324826990,1714354244913,-500.0,0.00012896,2]
[324826991,1714354244923,-500.0,0.00012896,2]
[324826992,1714354244933,-500.0,0.00012896,2]
[324826993,1714354244942,-500.0,0.00012896,2]
[324826994,1714354244952,-500.0,0.00012896,2]
[324826995,1714354244962,-500.0,0.00012896,2]
[324826996,1714354244971,-501.09573721,0.00012896,2]
[324826997,1714354244980,-500.0,0.00012896,2]
[324826998,1714354244990,-500.0,0.00012896,2]
[324826999,1714354244999,-500.0,0.00012896,2]
[324827000,1714354245008,-500.0,0.00012896,2]
[324827001,1714354245018,-530.95,0.00012896,2]
[324827002,1714354245027,-500.0,0.00012896,2]
[324827003,1714354245037,-500.0,0.00012896,2]
[324827004,1714354245047,-597.96,0.00012896,2]
[324827005,1714354245056,-500.0,0.00012896,2]
[324827006,1714354245065,-500.0,0.00012896,2]
[324827007,1714354245075,-500.0,0.00012896,2]
[324827008,1714354245084,-500.0,0.00012896,2]
[324827009,1714354245094,-500.0,0.00012896,2]
[324827010,1714354245102,-500.0,0.00012896,2]
[324827011,1714354245111,-500.0,0.00012896,2]
[324827012,1714354245120,-500.0,0.00012896,2]
[324827013,1714354245130,-500.0,0.00012896,2]
[324827014,1714354245139,-500.0,0.00012896,2]
[324827015,1714354245148,-500.0,0.00012896,2]
[324827016,1714354245158,-500.0,0.00012896,2]
[324827017,1714354245167,-564.99,0.00012896,2]
[324827018,1714354245176,-500.0,0.00012896,2]
[324827019,1714354245185,-513.50732727,0.00012896,2]
[324827020,1714354245194,-500.0,0.00012896,2]
[324827021,1714354245204,-500.0,0.00012896,2]
[324827022,1714354245213,-500.0,0.00012896,2]
[324827023,1714354245222,-500.0,0.00012896,2]
[324827024,1714354245231,-500.0,0.00012896,2]
[324827025,1714354245241,-500.0,0.00012896,2]
[324827026,1714354245250,-503.93078649,0.00012896,2]
[324827027,1714354245259,-547.93,0.00012896,2]
[324827028,1714354245268,-500.0,0.00012896,2]
[324827029,1714354245276,-500.0,0.00012896,2]
[324827030,1714354245286,-500.0,0.00012896,2]
[324827031,1714354245295,-302.39601475,0.00012896,2]
[324827032,1714354245304,-500.0,0.00012896,2]
[324827033,1714354245312,-500.0,0.00012896,2]
[324827034,1714354245321,-485.73544791,0.00012896,2]
[324827035,1714354245330,-270.44647404,0.00012896,2]
[324827036,1714354245339,-505.03011299,0.00012896,2]
[324827037,1714354245348,-500.0,0.00012896,2]
[324827038,1714354245357,-532.33986299,0.00012896,2]
[324827039,1714354245366,-500.0,0.00012896,2]
[324827040,1714354245375,-500.0,0.00012896,2]
[324827041,1714354245384,-500.0,0.00012896,2]
[324827042,1714354245393,-500.0,0.00012896,2]
[324827043,1714354245403,-500.0,0.00012896,2]
[324827044,1714354245412,-500.0,0.00012896,2]
[324827045,1714354245421,-500.0,0.00012896,2]
[324827046,1714354245430,-500.0,0.00012896,2]
[324827047,1714354245440,-500.0,0.00012896,2]
[324827048,1714354245450,-499.35145808,0.00012896,2]
[324827049,1714354245459,-500.0,0.00012896,2]
[324827050,1714354245468,-500.0,0.00012896,2]
[324827051,1714354245476,-500.0,0.00012896,2]
[324827052,1714354245485,-503.44429813,0.00012896,2]
[324827053,1714354245495,-500.0,0.00012896,2]
[324827054,1714354245505,-500.0,0.00012896,2]
[324827055,1714354245515,-542.25,0.00012896,2]
[324827056,1714354245524,-500.0,0.00012896,2]
[324827057,1714354245534,-500.0,0.00012896,2]
[324827058,1714354245544,-500.0,0.00012896,2]
[324827059,1714354245554,-500.0,0.00012896,2]
[324827060,1714354245565,-500.0,0.00012896,2]
[324827061,1714354245575,-500.0,0.00012896,2]
[324827062,1714354245585,-500.0,0.00012896,2]
[324827063,1714354245594,-226.81564346,0.00012896,2]
[324827064,1714354245603,-500.0,0.00012896,2]
[324827065,1714354245612,-500.0,0.00012896,2]
[324827066,1714354245621,-158.88,0.00012896,2]
[324827067,1714354245630,-572.20552832,0.00012896,2]
[324827068,1714354245639,-400.0,0.00012896,2]
[324827069,1714354245648,-500.0,0.00012896,2]
[324827070,1714354245659,-500.0,0.00012896,2]
[324827071,1714354245668,-500.0,0.00012896,2]
[324827072,1714354245677,-500.0,0.00012896,2]
[324827073,1714354245686,-257.05,0.00012896,2]
[324827074,1714354245696,-500.0,0.00012896,2]
[324827075,1714354245705,-430.02,0.00012896,2]
[324827076,1714354245714,-500.0,0.00012896,2]
[324827079,1714354245724,-500.0,0.00012896,2]
[324827082,1714354245733,-503.70783191,0.00012896,2]
[324827085,1714354245743,-500.0,0.00012896,2]
[324827087,1714354245752,-500.0,0.00012896,2]
[324827089,1714354245762,-199.15,0.00012896,2]
[324827091,1714354245770,-176.64,0.00012896,2]
[324827093,1714354245779,-500.0,0.00012896,2]
[324827095,1714354245789,-500.0,0.00012896,2]
[324827097,1714354245798,-627.41941267,0.00012896,2]
[324827098,1714354245811,-500.0,0.00012896,2]
[324827099,1714354245820,-263.03,0.00012896,2]
[324827100,1714354245829,-309.64,0.00012896,2]
[324827101,1714354245837,-507.17336659,0.00012896,2]
[324827102,1714354245846,-500.0,0.00012896,2]
[324827103,1714354245856,-500.0,0.00012896,2]
[324827104,1714354245865,-500.0,0.00012896,2]
[324827105,1714354245874,-500.0,0.00012896,2]
[324827106,1714354245884,-500.0,0.00012896,2]
[324827107,1714354245893,-502.34598686,0.00012896,2]
[324827108,1714354245902,-500.0,0.00012896,2]
[324827109,1714354245912,-500.0,0.00012896,2]
[324827110,1714354245921,-259.650878,0.00012896,2]
[324827111,1714354245930,-221.968526,0.00012896,2]
[324827112,1714354245939,-500.0,0.00012896,2]
[324827113,1714354245948,-289.97,0.00012896,2]
[324827114,1714354245957,-221.968526,0.00012896,2]
[324827115,1714354245966,-151.0,0.00012896,2]
[324827116,1714354245975,-151.0,0.00012896,2]
[324827117,1714354245984,-153.38,0.00012896,2]
[324827118,1714354245995,-151.0,0.00012896,2]
[324827119,1714354246003,-151.0,0.00012896,2]
[324827120,1714354246013,-266.941553,0.00012896,2]
[324827121,1714354246022,-151.0,0.00012896,2]
[324827122,1714354246031,-340.7,0.00012896,2]
[324827123,1714354246040,-151.0,0.00012896,2]
[324827124,1714354246050,-500.0,0.00012896,2]
[324827125,1714354246059,-500.0,0.00012896,2]
[324827126,1714354246069,-230.20164,0.00012896,2]
[324827127,1714354246079,-151.0,0.00012896,2]
[324827128,1714354246088,-230.20164,0.00012896,2]
[324827129,1714354246097,-198.68,0.00012896,2]
[324827130,1714354246106,-151.0,0.00012896,2]
[324827131,1714354246115,-519.43,0.00012896,2]
[324827132,1714354246125,-154.09,0.00012896,2]
[324827133,1714354246135,-461.27,0.00012896,2]
[324827134,1714354246144,-151.0,0.00012896,2]
[324827135,1714354246153,-151.0,0.00012896,2]
[324827136,1714354246163,-500.0,0.00012896,2]
[324827137,1714354246172,-151.0,0.00012896,2]
[324827138,1714354246181,-151.0,0.00012896,2]
[324827139,1714354246190,-265.44,0.00012896,2]
[324827140,1714354246199,-500.0,0.00012896,2]
[324827141,1714354246209,-500.0,0.00012896,2]
[324827142,1714354246218,-151.0,0.00012896,2]
[324827143,1714354246227,-500.0,0.00012896,2]
[324827144,1714354246237,-151.0,0.00012896,2]
[324827145,1714354246248,-500.0,0.00012896,2]
[324827146,1714354246257,-500.0,0.00012896,2]
[324827147,1714354246266,-331.39,0.00012896,2]
[324827148,1714354246276,-477.66,0.00012896,2]
[324827149,1714354246285,-162.373722,0.00012896,2]
[324827150,1714354246294,-500.0,0.00012896,2]
[324827151,1714354246304,-500.0,0.00012896,2]
[324827152,1714354246313,-270.937038,0.00012896,2]
[324827153,1714354246322,-307.3,0.00012896,2]
[324827154,1714354246332,-500.0,0.00012896,2]
[324827155,1714354246340,-513.02626304,0.00012896,2]
[324827156,1714354246350,-279.0180333,0.00012896,2]
[324827157,1714354246359,-549.61860205,0.00012896,2]
[324827158,1714354246367,-589.33427362,0.00012896,2]
[324827159,1714354246376,-172.88863055,0.00012896,2]
[324827160,1714354246386,-991.0,0.00012897,2]
[324827161,1714354246395,-14414.27934205,0.00012897,2]
[324827162,1714354246405,-14414.27934205,0.00012898,2]
[324827163,1714354246415,-151.0,0.00012898,2]
[324827164,1714354246424,-151.0,0.00012898,2]
[324827165,1714354246433,-151.0,0.00012898,2]
[324827166,1714354246443,-151.0,0.00012898,2]
[324827167,1714354246452,-194.816461,0.00012898,2]
[324827169,1714354246461,-221.722352,0.00012898,2]
[324827171,1714354246470,-283.855858,0.00012898,2]
[324827173,1714354246479,-151.0,0.00012898,2]
[324827175,1714354246490,-221.017983,0.00012898,2]
[324827176,1714354246499,-221.017983,0.00012898,2]
[324827179,1714354246537,-172.371007,0.00012898,2]
[324827181,1714354246546,-172.371007,0.00012898,2]
[324827183,1714354246555,-151.0,0.00012898,2]
[324827185,1714354246565,-151.0,0.00012898,2]
[324827186,1714354246575,-151.0,0.00012898,2]
[324827189,1714354246585,-500.0,0.00012898,2]
[324827191,1714354246595,-14414.27934205,0.00012898,2]
[324827193,1714354246605,-155.0,0.00012899,2]
[324827195,1714354246614,-20181.16193809,0.00012899,2]
[324827197,1714354246623,-288.59273022,0.00012899,2]
[324827199,1714354246633,-335.15344859,0.00012899,4]
[324827201,1714354246642,-19682.54185445,0.00012899,2]
[324827203,1714354246651,-547.0279652,0.00012899,2]
[324827205,1714354246661,-502.0610673,0.00012899,2]
[324827207,1714354246670,-500.0,0.00012899,2]
[324827209,1714354246679,-500.0,0.00012899,2]
[324827211,1714354246688,-495.08272625,0.00012899,2]
[324827213,1714354246697,-500.0,0.00012899,2]
[324827215,1714354246707,-216.64,0.00012899,2]
[324827216,1714354246716,-384.61,0.00012899,2]
[324827218,1714354246725,-500.0,0.00012899,2]
[324827221,1714354246735,-500.0,0.00012899,2]
[324827223,1714354246746,-500.0,0.00012899,2]
[324827225,1714354246756,-151.51,0.00012899,2]
[324827226,1714354246765,-500.0,0.00012899,2]
[324827229,1714354246776,-500.0,0.00012899,2]
[324827231,1714354246785,-500.0,0.00012899,2]
[324827232,1714354246796,-295.35,0.00012899,2]
[324827235,1714354246806,-500.0,0.00012899,2]
[324827237,1714354246817,-500.0,0.00012899,2]
[324827239,1714354246827,-500.0,0.00012899,2]
[324827241,1714354246836,-500.0,0.00012899,2]
[324827243,1714354246845,-356.14,0.00012899,2]
[324827245,1714354246855,-500.0,0.00012899,2]
[324827247,1714354246864,-500.0,0.00012899,2]
[324827249,1714354246873,-404.37,0.00012899,2]
[324827251,1714354246883,-225.94,0.00012899,2]
[324827253,1714354246893,-500.0,0.00012899,2]
[324827255,1714354246903,-269.74651586,0.00012899,2]
[324827257,1714354246911,-500.0,0.00012899,2]
[324827258,1714354246920,-500.0,0.00012899,2]
[324827260,1714354246929,-500.0,0.00012899,2]
[324827262,1714354246938,-420.87743394,0.00012899,2]
[324827265,1714354246947,-500.0,0.00012899,2]
[324827267,1714354246956,-588.59,0.00012899,2]
[324827269,1714354246965,-500.0,0.00012899,2]
[324827270,1714354246975,-196.46,0.00012899,2]
[324827271,1714354246984,-1114.0,0.00012899,2]
[324827272,1714354246994,-500.0,0.00012899,2]
[324827273,1714354247003,-500.0,0.00012899,2]
[324827274,1714354247012,-2722.15,0.00012899,2]
[324827275,1714354247021,-500.0,0.00012899,2]
[324827276,1714354247029,-500.0,0.00012899,2]
[324827277,1714354247038,-1194.75,0.00012899,2]
[324827278,1714354247047,-500.0,0.00012899,2]
[324827279,1714354247057,-500.0,0.00012899,2]
[324827280,1714354247066,-500.0,0.00012899,2]
[324827281,1714354247076,-500.0,0.00012899,2]
[324827282,1714354247084,-500.0,0.00012899,2]
[324827283,1714354247093,-500.0,0.00012899,2]
[324827285,1714354247104,-500.0,0.00012899,2]
[324827287,1714354247115,-500.0,0.00012899,2]
[324827289,1714354247124,-500.0,0.00012899,2]
[324827291,1714354247134,-500.0,0.00012899,2]
[324827294,1714354247144,-500.0,0.00012899,2]
[324827296,1714354247155,-500.0,0.00012899,2]
[324827298,1714354247164,-500.0,0.00012899,2]
[324827299,1714354247174,-151.0,0.00012899,2]
[324827302,1714354247183,-229.70155931,0.00012899,2]
[324827304,1714354247193,-500.0,0.00012899,2]
[324827306,1714354247204,-500.0,0.00012899,2]
[324827307,1714354247213,-500.0,0.00012899,2]
[324827310,1714354247223,-194.8386271,0.00012899,2]
[324827312,1714354247232,-500.0,0.00012899,2]
[324827314,1714354247242,-500.0,0.00012899,2]
[324827315,1714354247251,-500.0,0.00012899,2]
[324827316,1714354247260,-500.0,0.00012899,2]
[324827317,1714354247269,-500.0,0.00012899,2]
[324827318,1714354247278,-500.0,0.00012899,2]
[324827319,1714354247287,-500.0,0.00012899,2]
[324827320,1714354247297,-500.0,0.00012899,2]
[324827321,1714354247307,-514.21,0.00012899,2]
[324827322,1714354247316,-439.53,0.00012899,2]
[324827323,1714354247326,-500.0,0.00012899,2]
[324827324,1714354247335,-500.0,0.00012899,2]
[324827325,1714354247345,-500.0,0.00012899,2]
[324827326,1714354247354,-151.0,0.00012899,2]
[324827327,1714354247364,-500.0,0.00012899,2]
[324827328,1714354247373,-307.11,0.00012899,2]
[324827329,1714354247383,-434.23,0.00012899,2]
[324827330,1714354247392,-500.0,0.00012899,2]
[324827331,1714354247402,-500.0,0.00012899,2]
[324827332,1714354247411,-588.74,0.00012899,2]
[324827333,1714354247421,-500.0,0.00012899,2]
[324827334,1714354247430,-151.0,0.00012899,2]
[324827335,1714354247439,-500.0,0.00012899,2]
[324827336,1714354247448,-500.0,0.00012899,2]
[324827337,1714354247457,-500.0,0.00012899,2]
[324827338,1714354247467,-500.0,0.00012899,2]
[324827339,1714354247476,-500.0,0.00012899,2]
[324827340,1714354247486,-500.0,0.00012899,2]
[324827341,1714354247497,-266.838816,0.00012899,2]
[324827342,1714354247506,-500.0,0.00012899,2]
[324827343,1714354247516,-500.0,0.00012899,2]
[324827344,1714354247525,-500.0,0.00012899,2]
[324827345,1714354247534,-500.0,0.00012899,2]
[324827346,1714354247544,-500.0,0.00012899,2]
[324827347,1714354247554,-500.0,0.00012899,2]
[324827348,1714354247564,-500.0,0.00012899,2]
[324827349,1714354247573,-500.0,0.00012899,2]
[324827350,1714354247583,-500.0,0.00012899,2]
[324827351,1714354247592,-500.0,0.00012899,2]
[324827352,1714354247602,-151.0,0.00012899,2]
[324827353,1714354247611,-151.0,0.00012899,2]
[324827354,1714354247621,-574.69,0.00012899,2]
[324827355,1714354247631,-500.0,0.00012899,2]
[324827356,1714354247640,-500.0,0.00012899,2]
[324827357,1714354247650,-500.0,0.00012899,2]
[324827358,1714354247660,-616.05,0.00012899,2]
[324827359,1714354247669,-500.0,0.00012899,2]
[324827360,1714354247678,-500.0,0.00012899,2]
[324827361,1714354247687,-500.0,0.00012899,2]
[324827362,1714354247697,-500.0,0.00012899,2]
[324827363,1714354247707,-500.0,0.00012899,2]
[324827364,1714354247716,-500.0,0.00012899,2]
[324827365,1714354247728,-552.88,0.00012899,2]
[324827366,1714354247738,-500.0,0.00012899,2]
[324827367,1714354247748,-500.0,0.00012899,2]
[324827368,1714354247758,-500.0,0.00012899,2]
[324827369,1714354247768,-151.0,0.00012899,2]
[324827370,1714354247778,-500.0,0.00012899,2]
[324827371,1714354247787,-151.0,0.00012899,2]
[324827372,1714354247797,-151.0,0.00012899,2]
[324827373,1714354247808,-500.0,0.00012899,2]
[324827374,1714354247820,-151.0,0.00012899,2]
[324827375,1714354247829,-500.0,0.00012899,2]
[324827376,1714354247839,-507.24,0.00012899,2]
[324827377,1714354247849,-151.0,0.00012899,2]
[324827378,1714354247859,-500.0,0.00012899,2]
[324827379,1714354247868,-500.0,0.00012899,2]
[324827380,1714354247877,-151.0,0.00012899,2]
[324827381,1714354247886,-281.639809,0.00012899,2]
[324827382,1714354247898,-500.0,0.00012899,2]
[324827383,1714354247908,-500.0,0.00012899,2]
[324827384,1714354247918,-500.0,0.00012899,2]
[324827385,1714354247927,-500.0,0.00012899,2]
[324827386,1714354247936,-500.0,0.00012899,2]
[324827387,1714354247947,-500.0,0.00012899,2]
[324827388,1714354247959,-500.0,0.00012899,2]
[324827389,1714354247971,-151.0,0.00012899,2]
[324827390,1714354247981,-283.744776,0.00012899,2]
[324827391,1714354247991,-500.0,0.00012899,2]
[324827392,1714354248001,-190.425428,0.00012899,2]
[324827393,1714354248011,-500.0,0.00012899,2]
[324827394,1714354248022,-187.672632,0.00012899,2]
[324827395,1714354248032,-500.0,0.00012899,2]
[324827396,1714354248041,-500.0,0.00012899,2]
[324827397,1714354248052,-500.0,0.00012899,2]
[324827398,1714354248063,-167.996419,0.00012899,2]
[324827399,1714354248072,-221.017983,0.00012899,2]
[324827400,1714354248082,-221.017983,0.00012899,2]
[324827401,1714354248091,-172.371007,0.00012899,2]
[324827402,1714354248101,-172.371007,0.00012899,2]
[324827403,1714354248112,-151.0,0.00012899,2]
[324827404,1714354248123,-151.0,0.00012899,2]
[324827405,1714354248133,-289.044466,0.00012899,2]
[324827406,1714354248144,-221.968526,0.00012899,2]
[324827407,1714354248155,-221.968526,0.00012899,2]
[324827408,1714354248166,-151.0,0.00012899,2]
[324827409,1714354248175,-151.0,0.00012899,2]
[324827410,1714354248184,-151.0,0.00012899,2]
[324827411,1714354248194,-151.0,0.00012899,2]
[324827412,1714354248204,-151.0,0.00012899,2]
[324827413,1714354248214,-230.20164,0.00012899,2]
[324827414,1714354248225,-230.20164,0.00012899,2]
[324827415,1714354248237,-151.0,0.00012899,2]
[324827416,1714354248247,-151.0,0.00012899,2]
[324827417,1714354248257,-151.0,0.00012899,2]
[324827418,1714354248267,-168.171623,0.00012899,2]
[324827419,1714354248278,-151.0,0.00012899,2]
[324827420,1714354248288,-151.0,0.00012899,2]
[324827421,1714354248299,-919.41401251,0.00012899,2]
[324827422,1714354248310,-1634.68366641,0.00012899,2]
[324827423,1714354248353,-478.70000222,0.00012896,2]
[324827424,1714354248364,-27.01527042,0.00012896,2]
[324827425,1714354248374,-12779.59567564,0.00012899,2]
[324827426,1714354248384,-1340.7725,0.000129,2]
[324827427,1714354248393,-5379.92200705,0.000129,2]
[324827428,1714354248862,-570.49780148,0.00012889,2]
[324827429,1714354248871,-10.34219852,0.00012892,2]
[324827430,1714354249198,-625.66619799,0.00012892,2]
[324827721,1714355431876,-313.9136,8.994e-05,2]
[324827722,1714355432028,-308.04572919,8.994e-05,2]